fUSD/lending_fUSD_20251212
["ID","MTS","AMOUNT","RATE_DAILY","PERIOD"]
[398378476,1765559505370,-500.0,0.00040273,30]
[398378478,1765559505413,-500.0,0.00040273,30]
[398378479,1765559505454,-500.0,0.00040273,30]
[398378481,1765559505496,-500.0,0.00040273,30]
[398378482,1765559505537,-500.0,0.00040273,30]
[398378484,1765559505578,-500.0,0.00040273,30]
[398378486,1765559505617,-500.0,0.00040273,30]
[398378488,1765559505657,-500.0,0.00040273,30]
[398378489,1765559505700,-505.69,0.00040273,30]
[398378491,1765559505740,-500.0,0.00040273,30]
[398378493,1765559505782,-500.0,0.00040273,30]
[398378494,1765559505835,-500.0,0.00040273,30]
[398378496,1765559505876,-500.0,0.00040273,30]
[398378498,1765559505917,-500.0,0.00040273,30]
[398378499,1765559505958,-500.0,0.00040273,30]
[398378501,1765559505998,-500.0,0.00040273,30]
[398378503,1765559506041,-500.0,0.00040273,30]
[398378505,1765559506092,-500.0,0.00040273,30]
[398378507,1765559506144,-500.0,0.00040273,30]
[398378508,1765559506191,-276.2352493,0.00040273,30]
[398378510,1765559506235,-500.0,0.00040273,30]
[398378512,1765559506276,-1153.52,0.00040273,30]
[398378514,1765559506317,-500.0,0.00040273,30]
[398378515,1765559506362,-854.82,0.00040273,30]
[398378517,1765559506404,-666.07,0.00040273,30]
[398378519,1765559506445,-318.14881717,0.00040273,30]
[398378521,1765559506485,-500.0,0.00040273,30]
[398378522,1765559506528,-502.66,0.00040273,30]
[398378524,1765559506570,-500.0,0.00040273,30]
[398378526,1765559506612,-178.81624683,0.00040273,30]
[398378528,1765559506652,-1981.87413775,0.00040273,30]
[398378530,1765559506691,-500.0,0.00040273,30]
[398378531,1765559506731,-500.0,0.00040273,30]
[398378533,1765559506770,-500.0,0.00040273,30]
[398378535,1765559506812,-500.0,0.00040273,30]
[398378537,1765559506854,-595.78694353,0.00040273,30]
[398378538,1765559506893,-500.0,0.00040273,30]
[398378540,1765559506931,-500.0,0.00040273,30]
[398378542,1765559506970,-500.0,0.00040273,30]
[398378544,1765559507012,-944.86,0.00040273,30]
[398378545,1765559507053,-599.5,0.00040273,30]
[398378547,1765559507092,-500.0,0.00040273,30]
[398378549,1765559507133,-500.0,0.00040273,30]
[398378551,1765559507178,-500.0,0.00040273,30]
[398378552,1765559507219,-500.0,0.00040273,30]
[398378554,1765559507258,-500.0,0.00040273,30]
[398378556,1765559507296,-500.0,0.00040273,30]
[398378558,1765559507336,-651.78,0.00040273,30]
[398378559,1765559507376,-500.0,0.00040273,30]
[398378561,1765559507417,-500.0,0.00040273,30]
[398378563,1765559507457,-500.0,0.00040273,30]
[398378565,1765559507495,-500.0,0.00040273,30]
[398378566,1765559507535,-500.0,0.00040273,30]
[398378568,1765559507576,-500.0,0.00040273,30]
[398378570,1765559507616,-767.46,0.00040273,30]
[398378572,1765559507655,-500.0,0.00040273,30]
[398378573,1765559507694,-500.0,0.00040273,30]
[398378575,1765559507733,-500.0,0.00040273,30]
[398378577,1765559507771,-500.0,0.00040273,30]
[398378579,1765559507815,-500.0,0.00040273,30]
[398378581,1765559507857,-500.0,0.00040273,30]
[398378582,1765559507901,-500.0,0.00040273,30]
[398378589,1765559508209,-500.0,0.00040273,30]
[398378591,1765559508253,-500.0,0.00040273,30]
[398378593,1765559508295,-510.48172358,0.00040273,30]
[398378595,1765559508337,-500.0,0.00040273,30]
[398378597,1765559508382,-500.0,0.00040273,30]
[398378598,1765559508424,-500.0,0.00040273,30]
[398378600,1765559508468,-210.10089799,0.00040273,30]
[398378602,1765559508508,-367.294842,0.00040273,30]
[398378604,1765559508559,-500.0,0.00040273,30]
[398378606,1765559508602,-500.0,0.00040273,30]
[398378607,1765559508647,-500.0,0.00040273,30]
[398378609,1765559508694,-500.0,0.00040273,30]
[398378611,1765559508734,-871.13,0.00040273,30]
[398378613,1765559508773,-500.0,0.00040273,30]
[398378614,1765559508813,-500.0,0.00040273,30]
[398378616,1765559508854,-382.21552032,0.00040273,30]
[398378618,1765559508891,-500.0,0.00040273,30]
[398378620,1765559508931,-500.0,0.00040273,30]
[398378621,1765559508974,-660.76,0.00040273,30]
[398378623,1765559509015,-1294.87,0.00040273,30]
[398378625,1765559509060,-500.0,0.00040273,30]
[398378627,1765559509099,-1208.8,0.00040273,30]
[398378629,1765559509140,-689.89,0.00040273,30]
[398378630,1765559509181,-500.0,0.00040273,30]
[398378632,1765559509222,-500.0,0.00040273,30]
[398378634,1765559509264,-500.0,0.00040273,30]
[398378636,1765559509320,-500.0,0.00040273,30]
[398378638,1765559509367,-737.43,0.00040273,30]
[398378640,1765559509412,-500.0,0.00040273,30]
[398378641,1765559509458,-515.1,0.00040273,30]
[398378643,1765559509502,-562.24,0.00040273,30]
[398378645,1765559509550,-500.0,0.00040273,30]
[398378647,1765559509597,-500.0,0.00040273,30]
[398378649,1765559509645,-619.32,0.00040273,30]
[398378651,1765559509690,-500.0,0.00040273,30]
[398378652,1765559509732,-500.0,0.00040273,30]
[398378654,1765559509773,-500.0,0.00040273,30]
[398378656,1765559509813,-500.0,0.00040273,30]
[398378658,1765559509854,-1340.71,0.00040273,30]
[398378659,1765559509893,-500.0,0.00040273,30]
[398378661,1765559509940,-500.0,0.00040273,30]
[398378663,1765559509983,-500.0,0.00040273,30]
[398378665,1765559510026,-592.55,0.00040273,30]
[398378667,1765559510069,-500.0,0.00040273,30]
[398378669,1765559510114,-790.25,0.00040273,30]
[398378670,1765559510162,-772.71,0.00040273,30]
[398378672,1765559510206,-889.83,0.00040273,30]
[398378674,1765559510249,-656.2,0.00040273,30]
[398378676,1765559510291,-500.0,0.00040273,30]
[398378678,1765559510337,-500.0,0.00040273,30]
[398378679,1765559510382,-592.15,0.00040273,30]
[398378681,1765559510423,-500.0,0.00040273,30]
[398378683,1765559510466,-500.0,0.00040273,30]
[398378685,1765559510504,-500.0,0.00040273,30]
[398378687,1765559510550,-500.0,0.00040273,30]
[398378688,1765559510593,-500.0,0.00040273,30]
[398378690,1765559510635,-500.0,0.00040273,30]
[398378692,1765559510674,-500.0,0.00040273,30]
[398378693,1765559510712,-500.0,0.00040273,30]
[398378694,1765559510749,-526.55,0.00040273,30]
[398378696,1765559510787,-500.0,0.00040273,30]
[398378697,1765559510828,-500.0,0.00040273,30]
[398378699,1765559510869,-534.26075645,0.00040273,30]
[398378701,1765559510908,-500.0,0.00040273,30]
[398378703,1765559510951,-1443.54,0.00040273,30]
[398378705,1765559510991,-500.0,0.00040273,30]
[398378706,1765559511032,-500.0,0.00040273,30]
[398378708,1765559511072,-503.16,0.00040273,30]
[398378710,1765559511113,-512.46,0.00040273,30]
[398378712,1765559511158,-418.73720713,0.00040273,30]
[398378714,1765559511204,-896.59,0.00040273,30]
[398378715,1765559511248,-500.34,0.00040273,30]
[398378717,1765559511295,-817.71,0.00040273,30]
[398378719,1765559511338,-1256.23,0.00040273,30]
[398378721,1765559511380,-756.26,0.00040273,30]
[398378723,1765559511420,-500.0,0.00040273,30]
[398378724,1765559511463,-500.0,0.00040273,30]
[398378726,1765559511503,-597.9,0.00040273,30]
[398378728,1765559511541,-500.0,0.00040273,30]
[398378730,1765559511584,-625.93,0.00040273,30]
[398378732,1765559511630,-500.0,0.00040273,30]
[398378733,1765559511672,-500.0,0.00040273,30]
[398378735,1765559511710,-500.0,0.00040273,30]
[398378737,1765559511747,-673.07,0.00040273,30]
[398378739,1765559511784,-500.0,0.00040273,30]
[398378740,1765559511822,-748.24,0.00040273,30]
[398378742,1765559511862,-572.5064442,0.00040273,30]
[398378744,1765559511899,-1096.61,0.00040273,30]
[398378746,1765559511936,-500.0,0.00040273,30]
[398378748,1765559511977,-500.0,0.00040273,30]
[398378749,1765559512017,-500.0,0.00040273,30]
[398378751,1765559512056,-500.0,0.00040273,30]
[398378753,1765559512094,-500.0,0.00040273,30]
[398378755,1765559512137,-500.0,0.00040273,30]
[398378757,1765559512178,-500.0,0.00040273,30]
[398378764,1765559512528,-831.5,0.00040273,30]
[398378766,1765559512570,-500.0,0.00040273,30]
[398378768,1765559512612,-711.65,0.00040273,30]
[398378770,1765559512649,-500.0,0.00040273,30]
[398378772,1765559512686,-500.0,0.00040273,30]
[398378773,1765559512721,-613.25,0.00040273,30]
[398378775,1765559512756,-500.0,0.00040273,30]
[398378777,1765559512791,-425.21734074,0.00040273,30]
[398378779,1765559512827,-500.0,0.00040273,120]
[398378780,1765559512864,-500.0,0.00040273,30]
[398378782,1765559512902,-702.41,0.00040273,30]
[398378784,1765559512940,-500.0,0.00040273,30]
[398378786,1765559512976,-500.0,0.00040273,30]
[398378787,1765559513015,-500.0,0.00040273,30]
[398378789,1765559513054,-500.0,0.00040273,30]
[398378791,1765559513092,-500.0,0.00040273,30]
[398378793,1765559513131,-500.0,0.00040273,30]
[398378794,1765559513173,-500.0,0.00040273,30]
[398378796,1765559513214,-500.0,0.00040273,30]
[398378798,1765559513254,-500.0,0.00040273,30]
[398378800,1765559513294,-751.53,0.00040273,30]
[398378801,1765559513337,-500.0,0.00040273,30]
[398378803,1765559513378,-500.0,0.00040273,30]
[398378805,1765559513418,-500.0,0.00040273,30]
[398378807,1765559513458,-500.0,0.00040273,30]
[398378808,1765559513497,-500.0,0.00040273,30]
[398378810,1765559513534,-500.0,0.00040273,30]
[398378812,1765559513579,-500.0,0.00040273,30]
[398378814,1765559513623,-500.0,0.00040273,30]
[398378815,1765559513671,-500.0,0.00040273,30]
[398378817,1765559513711,-500.0,0.00040273,30]
[398378819,1765559513751,-500.0,0.00040273,30]
[398378821,1765559513789,-500.0,0.00040273,30]
[398378822,1765559513828,-500.0,0.00040273,30]
[398378824,1765559513866,-500.0,0.00040273,30]
[398378826,1765559513907,-500.0,0.00040273,30]
[398378828,1765559513953,-500.0,0.00040273,30]
[398378830,1765559513992,-500.0,0.00040273,30]
[398378832,1765559514033,-500.0,0.00040273,30]
[398378833,1765559514077,-856.21,0.00040273,30]
[398378835,1765559514118,-500.0,0.00040273,30]
[398378837,1765559514159,-1298.66,0.00040273,30]
[398378839,1765559514199,-500.0,0.00040273,30]
[398378840,1765559514239,-625.34,0.00040273,30]
[398378842,1765559514277,-605.46,0.00040273,30]
[398378844,1765559514314,-500.0,0.00040273,30]
[398378846,1765559514354,-500.0,0.00040273,30]
[398378847,1765559514394,-545.21,0.00040273,30]
[398378849,1765559514433,-2537.52,0.00040273,30]
[398378851,1765559514470,-612.3,0.00040273,30]
[398378853,1765559514506,-500.0,0.00040273,30]
[398378854,1765559514544,-500.0,0.00040273,30]
[398378856,1765559514587,-500.0,0.00040273,30]
[398378858,1765559514624,-758.93,0.00040273,30]
[398378860,1765559514661,-500.0,0.00040273,30]
[398378861,1765559514705,-500.0,0.00040273,30]
[398378863,1765559514742,-500.0,0.00040273,30]
[398378865,1765559514779,-580.78,0.00040273,30]
[398378867,1765559514816,-500.0,0.00040273,30]
[398378868,1765559514852,-500.0,0.00040273,30]
[398378870,1765559514889,-500.0,0.00040273,30]
[398378872,1765559514928,-500.0,0.00040273,30]
[398378873,1765559514968,-500.0,0.00040273,30]
[398378875,1765559515010,-568.8,0.00040273,30]
[398378877,1765559515047,-500.0,0.00040273,30]
[398378879,1765559515084,-681.75,0.00040273,30]
[398378880,1765559515120,-904.15,0.00040273,30]
[398378881,1765559515155,-521.98,0.00040273,30]
[398378882,1765559515194,-191.56463071,0.00040273,30]
[398378883,1765559515229,-500.0,0.00040273,30]
[398378884,1765559515264,-500.0,0.00040273,30]
[398378886,1765559515303,-1178.64,0.00040273,30]
[398378887,1765559515345,-500.0,0.00040273,30]
[398378889,1765559515385,-500.0,0.00040273,30]
[398378891,1765559515424,-987.42,0.00040273,30]
[398378892,1765559515465,-500.0,0.00040273,30]
[398378894,1765559515503,-688.42,0.00040273,30]
[398378896,1765559515540,-500.0,0.00040273,30]
[398378897,1765559515581,-591.37,0.00040273,30]
[398378899,1765559515620,-500.0,0.00040273,30]
[398378901,1765559515661,-500.0,0.00040273,30]
[398378903,1765559515700,-500.0,0.00040273,30]
[398378904,1765559515741,-518.77,0.00040273,30]
[398378906,1765559515781,-1073.23,0.00040273,30]
[398378908,1765559515819,-500.0,0.00040273,30]
[398378910,1765559515857,-500.0,0.00040273,30]
[398378911,1765559515897,-500.0,0.00040273,30]
[398378913,1765559515935,-500.0,0.00040273,30]
[398378915,1765559515972,-1014.08,0.00040273,30]
[398378917,1765559516012,-500.0,0.00040273,30]
[398378918,1765559516053,-500.0,0.00040273,30]
[398378920,1765559516093,-1249.97,0.00040273,30]
[398378922,1765559516134,-500.0,0.00040273,30]
[398378923,1765559516176,-500.0,0.00040273,30]
[398378925,1765559516218,-500.0,0.00040273,30]
[398378930,1765559516468,-613.74,0.00040273,30]
[398378932,1765559516513,-952.07,0.00040273,30]
[398378934,1765559516553,-500.0,0.00040273,30]
[398378936,1765559516592,-612.16,0.00040273,30]
[398378937,1765559516634,-854.34,0.00040273,30]
[398378939,1765559516673,-363.54,0.00040273,30]
[398378941,1765559516711,-500.0,0.00040273,30]
[398378942,1765559516749,-627.56,0.00040273,30]
[398378944,1765559516786,-500.0,0.00040273,30]
[398378946,1765559516823,-500.0,0.00040273,30]
[398378947,1765559516859,-895.82,0.00040273,30]
[398378949,1765559516894,-500.0,0.00040273,30]
[398378951,1765559516930,-500.0,0.00040273,30]
[398378952,1765559516967,-500.0,0.00040273,30]
[398378954,1765559517004,-970.02,0.00040273,30]
[398378956,1765559517042,-500.0,0.00040273,30]
[398378958,1765559517080,-531.18,0.00040273,30]
[398378959,1765559517120,-666.87,0.00040273,30]
[398378961,1765559517159,-579.42,0.00040273,30]
[398378963,1765559517196,-500.0,0.00040273,30]
[398378965,1765559517235,-500.0,0.00040273,30]
[398378966,1765559517275,-710.84,0.00040273,30]
[398378968,1765559517321,-825.13,0.00040273,30]
[398378970,1765559517367,-500.0,0.00040273,30]
[398378971,1765559517409,-500.0,0.00040273,30]
[398378973,1765559517449,-500.0,0.00040273,30]
[398378975,1765559517488,-542.08,0.00040273,30]
[398378977,1765559517525,-500.0,0.00040273,30]
[398378978,1765559517564,-500.0,0.00040273,30]
[398378980,1765559517604,-713.89,0.00040273,30]
[398378982,1765559517644,-791.45,0.00040273,30]
[398378983,1765559517683,-500.0,0.00040273,30]
[398378985,1765559517723,-500.0,0.00040273,30]
[398378987,1765559517760,-1029.59,0.00040273,30]
[398378989,1765559517797,-809.28,0.00040273,30]
[398378990,1765559517836,-500.0,0.00040273,30]
[398378992,1765559517875,-500.0,0.00040273,30]
[398378994,1765559517913,-500.0,0.00040273,30]
[398378996,1765559517957,-500.0,0.00040273,30]
[398378998,1765559517999,-621.67,0.00040273,30]
[398378999,1765559518042,-642.87,0.00040273,30]
[398379001,1765559518090,-702.26,0.00040273,30]
[398379003,1765559518132,-500.0,0.00040273,30]
[398379005,1765559518172,-844.79,0.00040273,30]
[398379006,1765559518210,-500.0,0.00040273,30]
[398379008,1765559518248,-1085.81,0.00040273,30]
[398379010,1765559518286,-500.0,0.00040273,30]
[398379011,1765559518328,-500.0,0.00040273,30]
[398379013,1765559518368,-500.0,0.00040273,30]
[398379015,1765559518409,-500.0,0.00040273,30]
[398379016,1765559518449,-1828.22,0.00040273,30]
[398379018,1765559518491,-500.0,0.00040273,30]
[398379020,1765559518531,-1274.19,0.00040273,30]
[398379022,1765559518570,-500.0,0.00040273,30]
[398379023,1765559518609,-2332.37,0.00040273,30]
[398379025,1765559518649,-644.63,0.00040273,30]
[398379027,1765559518688,-815.59,0.00040273,30]
[398379028,1765559518726,-500.0,0.00040273,30]
[398379030,1765559518763,-981.12,0.00040273,30]
[398379032,1765559518800,-770.84,0.00040273,30]
[398379033,1765559518836,-570.19,0.00040273,30]
[398379035,1765559518872,-500.0,0.00040273,30]
[398379037,1765559518908,-500.0,0.00040273,30]
[398379038,1765559518952,-3691.57,0.00040273,30]
[398379040,1765559518990,-1313.11,0.00040273,30]
[398379042,1765559519032,-500.0,0.00040273,30]
[398379043,1765559519072,-585.9,0.00040273,30]
[398379045,1765559519110,-589.02,0.00040273,30]
[398379047,1765559519149,-500.0,0.00040273,30]
[398379048,1765559519191,-500.0,0.00040273,30]
[398379050,1765559519230,-329.28084557,0.00040273,30]
[398379052,1765559519269,-500.0,0.00040273,30]
[398379053,1765559519308,-500.0,0.00040273,30]
[398379055,1765559519345,-500.0,0.00040273,30]
[398379057,1765559519382,-500.0,0.00040273,30]
[398379059,1765559519420,-500.0,0.00040273,30]
[398379060,1765559519459,-500.0,0.00040273,30]
[398379062,1765559519497,-500.0,0.00040273,30]
[398379064,1765559519532,-500.0,0.00040273,30]
[398379065,1765559519569,-500.0,0.00040273,30]
[398379067,1765559519605,-500.0,0.00040273,30]
[398379069,1765559519640,-500.0,0.00040273,30]
[398379071,1765559519675,-500.0,0.00040273,30]
[398379072,1765559519710,-500.0,0.00040273,30]
[398379074,1765559519743,-784.06,0.00040273,30]
[398379076,1765559519777,-3626.89,0.00040273,30]
[398379077,1765559519811,-500.0,0.00040273,30]
[398379079,1765559519845,-500.0,0.00040273,30]
[398379081,1765559519879,-500.0,0.00040273,30]
[398379083,1765559519914,-500.0,0.00040273,30]
[398379084,1765559519956,-500.0,0.00040273,30]
[398379086,1765559519993,-500.0,0.00040273,30]
[398379088,1765559520029,-500.0,0.00040273,30]
[398379089,1765559520067,-601.74,0.00040273,30]
[398379091,1765559520104,-526.61,0.00040273,30]
[398379096,1765559520354,-552.42054778,0.00040273,30]
[398379098,1765559520403,-500.0,0.00040273,30]
[398379100,1765559520445,-500.0,0.00040273,30]
[398379101,1765559520486,-778.17,0.00040273,30]
[398379103,1765559520526,-500.0,0.00040273,30]
[398379105,1765559520566,-500.0,0.00040273,30]
[398379106,1765559520605,-500.0,0.00040273,30]
[398379108,1765559520643,-500.0,0.00040273,30]
[398379110,1765559520681,-643.31,0.00040273,30]
[398379112,1765559520719,-500.0,0.00040273,30]
[398379113,1765559520757,-500.0,0.00040273,30]
[398379115,1765559520798,-500.0,0.00040273,30]
[398379117,1765559520844,-1076.99,0.00040273,30]
[398379119,1765559520889,-500.0,0.00040273,30]
[398379120,1765559520936,-500.0,0.00040273,30]
[398379122,1765559520983,-500.0,0.00040273,30]
[398379124,1765559521027,-553.84,0.00040273,30]
[398379125,1765559521069,-500.0,0.00040273,30]
[398379127,1765559521112,-500.0,0.00040273,30]
[398379129,1765559521152,-500.0,0.00040273,30]
[398379130,1765559521193,-500.0,0.00040273,30]
[398379132,1765559521233,-513.44,0.00040273,30]
[398379134,1765559521271,-500.0,0.00040273,30]
[398379136,1765559521316,-500.0,0.00040273,30]
[398379138,1765559521369,-835.61,0.00040273,30]
[398379140,1765559521413,-500.0,0.00040273,30]
[398379141,1765559521454,-500.0,0.00040273,30]
[398379143,1765559521497,-3639.86,0.00040273,30]
[398379145,1765559521538,-1233.43,0.00040273,30]
[398379147,1765559521580,-775.18,0.00040273,30]
[398379149,1765559521622,-500.0,0.00040273,30]
[398379150,1765559521662,-1393.87,0.00040273,30]
[398379152,1765559521700,-737.19,0.00040273,30]
[398379154,1765559521739,-500.0,0.00040273,30]
[398379156,1765559521776,-500.0,0.00040273,30]
[398379157,1765559521816,-500.0,0.00040273,30]
[398379159,1765559521852,-500.0,0.00040273,30]
[398379161,1765559521888,-1276.27,0.00040273,30]
[398379162,1765559521927,-596.21545015,0.00040273,30]
[398379164,1765559521972,-500.0,0.00040273,30]
[398379166,1765559522012,-1307.39,0.00040273,30]
[398379167,1765559522052,-536.91,0.00040273,30]
[398379169,1765559522092,-207.23257491,0.00040273,30]
[398379171,1765559522132,-1276.44,0.00040273,30]
[398379173,1765559522172,-500.0,0.00040273,30]
[398379174,1765559522212,-563.19,0.00040273,30]
[398379176,1765559522251,-500.0,0.00040273,30]
[398379178,1765559522289,-500.0,0.00040273,30]
[398379180,1765559522331,-691.33,0.00040273,30]
[398379181,1765559522373,-500.0,0.00040273,30]
[398379183,1765559522416,-500.0,0.00040273,30]
[398379185,1765559522458,-500.0,0.00040273,30]
[398379187,1765559522500,-500.0,0.00040273,30]
[398379189,1765559522549,-500.0,0.00040273,30]
[398379190,1765559522592,-500.0,0.00040273,30]
[398379192,1765559522635,-500.0,0.00040273,30]
[398379194,1765559522676,-500.0,0.00040273,30]
[398379196,1765559522717,-500.0,0.00040273,30]
[398379197,1765559522759,-619.73,0.00040273,30]
[398379199,1765559522800,-500.0,0.00040273,30]
[398379201,1765559522839,-500.0,0.00040273,30]
[398379203,1765559522877,-857.44,0.00040273,30]
[398379204,1765559522919,-573.64,0.00040273,30]
[398379206,1765559522969,-500.0,0.00040273,30]
[398379208,1765559523010,-572.6,0.00040273,30]
[398379210,1765559523052,-500.0,0.00040273,30]
[398379211,1765559523095,-561.54,0.00040273,30]
[398379213,1765559523137,-580.19,0.00040273,30]
[398379215,1765559523183,-1340.57,0.00040273,30]
[398379217,1765559523224,-500.0,0.00040273,30]
[398379218,1765559523266,-500.0,0.00040273,30]
[398379220,1765559523309,-615.99,0.00040273,30]
[398379222,1765559523352,-500.0,0.00040273,30]
[398379224,1765559523397,-500.0,0.00040273,30]
[398379226,1765559523443,-500.0,0.00040273,30]
[398379227,1765559523490,-500.0,0.00040273,30]
[398379229,1765559523532,-1177.76,0.00040273,30]
[398379231,1765559523575,-500.0,0.00040273,30]
[398379233,1765559523619,-500.0,0.00040273,30]
[398379234,1765559523664,-1878.3,0.00040273,30]
[398379236,1765559523705,-1765.81,0.00040273,30]
[398379238,1765559523744,-1180.63,0.00040273,30]
[398379239,1765559523783,-850.22,0.00040273,30]
[398379241,1765559523825,-500.0,0.00040273,30]
[398379243,1765559523872,-500.0,0.00040273,30]
[398379245,1765559523918,-500.0,0.00040273,30]
[398379246,1765559523965,-500.0,0.00040273,30]
[398379248,1765559524009,-500.0,0.00040273,30]
[398379250,1765559524052,-500.0,0.00040273,30]
[398379252,1765559524100,-500.0,0.00040273,30]
[398379253,1765559524144,-500.0,0.00040273,30]
[398379255,1765559524189,-934.3,0.00040273,30]
[398379257,1765559524233,-500.0,0.00040273,30]
[398379259,1765559524276,-1531.1,0.00040273,30]
[398379260,1765559524318,-500.0,0.00040273,30]
[398379261,1765559524362,-500.0,0.00040273,30]
[398379269,1765559524742,-534.91,0.00040273,30]
[398379270,1765559524786,-204.40666653,0.00040273,30]
[398379272,1765559524827,-629.98,0.00040273,30]
[398379274,1765559524869,-892.13,0.00040273,30]
[398379276,1765559524909,-500.0,0.00040273,30]
[398379278,1765559524955,-790.85,0.00040273,30]
[398379279,1765559524996,-1000.0,0.00040273,30]
[398379281,1765559525039,-819.85,0.00040273,30]
[398379283,1765559525079,-589.28,0.00040273,30]
[398379285,1765559525120,-967.53,0.00040273,30]
[398379286,1765559525162,-500.0,0.00040273,30]
[398379288,1765559525212,-957.71,0.00040273,30]
[398379290,1765559525259,-500.0,0.00040273,30]
[398379292,1765559525304,-3219.23,0.00040273,30]
[398379294,1765559525348,-500.0,0.00040273,30]
[398379295,1765559525393,-500.0,0.00040273,30]
[398379297,1765559525439,-4924.5,0.00040273,30]
[398379298,1765559525486,-511.5,0.00040273,30]
[398379299,1765559525537,-716.43,0.00040273,30]
[398379301,1765559525589,-500.0,0.00040273,30]
[398379303,1765559525644,-1215.39,0.00040273,30]
[398379304,1765559525693,-504.49,0.00040273,30]
[398379306,1765559525741,-529.95316991,0.00040273,30]
[398379308,1765559525787,-500.0,0.00040273,30]
[398379310,1765559525835,-665.47,0.00040273,30]
[398379311,1765559525885,-500.0,0.00040273,30]
[398379313,1765559525929,-500.0,0.00040273,30]
[398379315,1765559525972,-295.51680953,0.00040273,30]
[398379316,1765559526020,-500.0,0.00040273,30]
[398379318,1765559526066,-526.55,0.00040273,30]
[398379320,1765559526108,-500.0,0.00040273,30]
[398379321,1765559526153,-853.33,0.00040273,30]
[398379323,1765559526197,-592.65,0.00040273,30]
[398379325,1765559526240,-500.0,0.00040273,30]
[398379327,1765559526284,-500.0,0.00040273,30]
[398379328,1765559526327,-1000.0,0.00040273,30]
[398379330,1765559526373,-500.0,0.00040273,30]
[398379332,1765559526423,-500.0,0.00040273,30]
[398379333,1765559526472,-500.0,0.00040273,30]
[398379335,1765559526516,-500.0,0.00040273,30]
[398379337,1765559526559,-500.0,0.00040273,30]
[398379339,1765559526603,-1447.73,0.00040273,30]
[398379340,1765559526647,-708.43,0.00040273,30]
[398379342,1765559526694,-500.0,0.00040273,30]
[398379344,1765559526735,-500.0,0.00040273,30]
[398379345,1765559526775,-500.0,0.00040273,30]
[398379347,1765559526814,-500.0,0.00040273,30]
[398379349,1765559526855,-2113.68,0.00040273,30]
[398379350,1765559526896,-971.96,0.00040273,30]
[398379352,1765559526937,-500.0,0.00040273,30]
[398379354,1765559526977,-500.0,0.00040273,30]
[398379356,1765559527018,-500.0,0.00040273,30]
[398379357,1765559527058,-500.0,0.00040273,30]
[398379359,1765559527101,-500.0,0.00040273,30]
[398379360,1765559527142,-971.45,0.00040273,30]
[398379362,1765559527185,-771.89,0.00040273,30]
[398379363,1765559527226,-500.0,0.00040273,30]